fUST/lending_fUST_20250118
["ID","MTS","AMOUNT","RATE_DAILY","PERIOD"]
[349403421,1737166250793,-385.07873775,0.00022602,3]
[349403423,1737166250802,-590.36,0.00022602,3]
[349403425,1737166250812,-500.0,0.00022602,3]
[349403426,1737166250821,-500.0,0.00022602,3]
[349403428,1737166250831,-15380.6,0.00022602,3]
[349403430,1737166250844,-154.0,0.00022652,2]
[349403432,1737166250854,-154.0,0.00022652,2]
[349403434,1737166250863,-154.0,0.00022652,2]
[349403435,1737166250872,-154.0,0.00022652,2]
[349403437,1737166250882,-154.0,0.00022652,2]
[349403439,1737166250891,-154.0,0.00022652,2]
[349403441,1737166250901,-154.0,0.00022652,2]
[349403443,1737166250910,-154.0,0.00022652,2]
[349403445,1737166250921,-154.0,0.00022652,2]
[349403447,1737166250932,-154.0,0.00022652,2]
[349403449,1737166250941,-154.0,0.00022652,2]
[349403450,1737166250950,-154.0,0.00022652,2]
[349403452,1737166250959,-154.0,0.00022652,2]
[349403454,1737166250968,-154.0,0.00022652,2]
[349403456,1737166250977,-154.0,0.00022652,2]
[349403458,1737166250987,-154.0,0.00022652,2]
[349403460,1737166250996,-154.0,0.00022652,2]
[349403462,1737166251005,-154.0,0.00022652,2]
[349403463,1737166251015,-154.0,0.00022652,2]
[349403465,1737166251024,-154.0,0.00022652,2]
[349403467,1737166251034,-154.0,0.00022652,2]
[349403469,1737166251045,-154.0,0.00022652,2]
[349403470,1737166251054,-154.0,0.00022652,2]
[349403472,1737166251064,-154.0,0.00022652,2]
[349403474,1737166251074,-154.0,0.00022652,2]
[349403476,1737166251084,-154.0,0.00022652,2]
[349403478,1737166251093,-154.0,0.00022652,2]
[349403480,1737166251104,-154.0,0.00022652,2]
[349403481,1737166251114,-154.0,0.00022652,2]
[349403483,1737166251123,-154.0,0.00022652,2]
[349403485,1737166251133,-154.0,0.00022652,2]
[349403487,1737166251143,-154.0,0.00022652,2]
[349403488,1737166251153,-154.0,0.00022652,2]
[349403490,1737166251162,-164.16,0.00022652,2]
[349403492,1737166251171,-201.34932936,0.00022669,3]
[349403494,1737166251180,-10819.51,0.000227,2]
[349403495,1737166251190,-151.0,0.000227,6]
[349403497,1737166251200,-300.0,0.000227,10]
[349403499,1737166251210,-1103.835854,0.000227,2]
[349403501,1737166251220,-151.0,0.000227,6]
[349403503,1737166251229,-466.4985,0.000227,2]
[349403505,1737166251239,-1000.0,0.0002272,3]
[349403507,1737166251248,-302.0,0.00022737,2]
[349403508,1737166251258,-151.0,0.00022738,7]
[349403510,1737166251268,-151.0,0.00022738,7]
[349403512,1737166251277,-151.0,0.00022738,7]
[349403514,1737166251287,-151.0,0.00022739,7]
[349403516,1737166251297,-151.848912,0.00022739,7]
[349403518,1737166251307,-151.848912,0.00022739,7]
[349403519,1737166251317,-168.043382,0.00022739,7]
[349403521,1737166251327,-500.0,0.00022739,3]
[349403523,1737166251337,-500.0,0.00022739,3]
[349403525,1737166251346,-574.3686609,0.00022739,3]
[349403527,1737166251355,-500.0,0.00022739,3]
[349403529,1737166251364,-500.0,0.00022739,3]
[349403530,1737166251374,-500.0,0.00022739,3]
[349403532,1737166251383,-500.0,0.00022739,3]
[349403534,1737166251393,-764.39,0.00022739,3]
[349403536,1737166251402,-580.84260823,0.00022739,3]
[349403538,1737166251411,-767.93,0.00022739,3]
[349403539,1737166251421,-500.0,0.00022739,3]
[349403541,1737166251430,-664.42,0.00022739,3]
[349403543,1737166251439,-1390.67,0.00022739,3]
[349403545,1737166251449,-525.98,0.00022739,3]
[349403547,1737166251458,-500.0,0.00022739,2]
[349403548,1737166251467,-934.5,0.00022739,3]
[349403550,1737166251476,-2534.07,0.00022739,3]
[349403552,1737166251486,-2794.44,0.00022739,3]
[349403553,1737166251496,-508.41,0.00022739,3]
[349403555,1737166251505,-554.44,0.00022739,3]
[349403557,1737166251515,-197.8699306,0.00022739,3]
[349403559,1737166251524,-4010.56,0.00022739,3]
[349403560,1737166251533,-927.63,0.00022739,3]
[349403562,1737166251544,-500.0,0.00022739,3]
[349403564,1737166251553,-1788.16,0.00022739,3]
[349403565,1737166251563,-500.0,0.00022739,3]
[349403567,1737166251572,-367.1457144,0.00022739,3]
[349403569,1737166251582,-1049.43,0.00022739,3]
[349403571,1737166251592,-500.0,0.00022739,3]
[349403572,1737166251602,-500.0,0.00022739,3]
[349403574,1737166251611,-1069.4,0.00022739,3]
[349403576,1737166251621,-960.46,0.00022739,3]
[349403577,1737166251630,-1384.48,0.00022739,3]
[349403579,1737166251639,-500.0,0.00022739,3]
[349403581,1737166251649,-903.02,0.00022739,3]
[349403582,1737166251658,-2998.29,0.00022739,3]
[349403584,1737166251667,-500.0,0.00022739,3]
[349403586,1737166251677,-500.0,0.00022739,3]
[349403588,1737166251686,-590.36,0.00022739,3]
[349403589,1737166251695,-500.0,0.00022739,3]
[349403591,1737166251704,-500.0,0.00022739,3]
[349403593,1737166251714,-15380.6,0.00022739,3]
[349403594,1737166251723,-201.34932936,0.00022746,3]
[349403596,1737166251732,-151.0,0.000228,5]
[349403598,1737166251741,-151.0,0.000228,8]
[349403599,1737166251750,-500.0,0.00022808,2]
[349403601,1737166251759,-600.0,0.00022812,2]
[349403603,1737166251768,-201.34932936,0.00022823,3]
[349403605,1737166251777,-63864.37946873,0.0002287,2]
[349403606,1737166251786,-168.776351,0.0002287,7]
[349403608,1737166251796,-151.848912,0.0002287,7]
[349403610,1737166251805,-151.848912,0.0002287,7]
[349403611,1737166251814,-151.0,0.00022876,7]
[349403613,1737166251824,-500.0,0.00022876,3]
[349403615,1737166251833,-500.0,0.00022876,3]
[349403617,1737166251847,-500.0,0.00022876,3]
[349403618,1737166251857,-500.0,0.00022876,3]
[349403620,1737166251866,-500.0,0.00022876,3]
[349403622,1737166251876,-500.0,0.00022876,3]
[349403624,1737166251885,-764.39,0.00022876,3]
[349403625,1737166251895,-767.93,0.00022876,3]
[349403627,1737166251905,-500.0,0.00022876,3]
[349403629,1737166251914,-664.42,0.00022876,3]
[349403630,1737166251923,-1390.67,0.00022876,3]
[349403632,1737166251933,-525.98,0.00022876,3]
[349403634,1737166251942,-500.0,0.00022876,2]
[349403636,1737166251951,-934.5,0.00022876,3]
[349403637,1737166251960,-2534.07,0.00022876,3]
[349403639,1737166251969,-2794.44,0.00022876,3]
[349403641,1737166251978,-508.41,0.00022876,3]
[349403642,1737166251987,-554.44,0.00022876,3]
[349403644,1737166251996,-4010.56,0.00022876,3]
[349403646,1737166252005,-927.63,0.00022876,3]
[349403648,1737166252015,-500.0,0.00022876,3]
[349403650,1737166252024,-1788.16,0.00022876,3]
[349403652,1737166252033,-500.0,0.00022876,3]
[349403653,1737166252043,-1049.43,0.00022876,3]
[349403654,1737166252052,-500.0,0.00022876,3]
[349403655,1737166252061,-500.0,0.00022876,3]
[349403656,1737166252071,-1069.4,0.00022876,3]
[349403657,1737166252079,-960.46,0.00022876,3]
[349403658,1737166252088,-1384.48,0.00022876,3]
[349403659,1737166252098,-369.53242228,0.00022876,3]
[349403660,1737166252106,-903.02,0.00022876,3]
[349403661,1737166252115,-2998.29,0.00022876,3]
[349403662,1737166252125,-500.0,0.00022876,3]
[349403663,1737166252134,-500.0,0.00022876,3]
[349403664,1737166252143,-590.36,0.00022876,3]
[349403665,1737166252152,-500.0,0.00022876,3]
[349403666,1737166252161,-500.0,0.00022876,3]
[349403667,1737166252170,-14495.93856976,0.00022876,3]
[349403678,1737166252271,-884.66143024,0.00022876,3]
[349403680,1737166252281,-151.848912,0.0002288,7]
[349403682,1737166252290,-151.848912,0.0002288,7]
[349403684,1737166252299,-151.0,0.000229,10]
[349403686,1737166252308,-151.0,0.000229,5]
[349403688,1737166252318,-364.23678444,0.000229,2]
[349403690,1737166252327,-201.34932936,0.000229,3]
[349403692,1737166252337,-161.8297344,0.00022977,3]
[349403708,1737166252481,-21.17530002,0.00021146,2]
[349403710,1737166252493,-378.84469998,0.00021146,2]
[349403712,1737166252502,-5634.69,0.00021917,3]
[349403714,1737166252511,-151.0,0.00021917,2]
[349403716,1737166252522,-500.0,0.00021917,3]
[349403718,1737166252532,-151.0,0.00021917,2]
[349403720,1737166252542,-151.0,0.00021917,2]
[349403722,1737166252551,-5634.69,0.00022054,3]
[349403724,1737166252560,-500.0,0.00022054,3]
[349403726,1737166252570,-151.0,0.00022054,2]
[349403728,1737166252579,-151.0,0.00022054,2]
[349403730,1737166252588,-5634.69,0.00022191,3]
[349403732,1737166252596,-500.0,0.00022191,3]
[349403734,1737166252607,-5634.69,0.00022328,3]
[349403736,1737166252616,-500.0,0.00022328,3]
[349403738,1737166252625,-5634.69,0.00022465,3]
[349403740,1737166252635,-500.0,0.00022465,3]
[349403742,1737166252644,-5634.69,0.00022602,3]
[349403744,1737166252653,-500.0,0.00022602,3]
[349403746,1737166252663,-5634.69,0.00022739,3]
[349403748,1737166252672,-500.0,0.00022739,3]
[349403750,1737166252682,-5634.69,0.00022876,3]
[349403752,1737166252693,-39.51959496,0.00022977,3]
[349403754,1737166252702,-1000.0,0.00023,20]
[349403756,1737166252712,-244.39428288,0.00023,2]
[349403758,1737166252721,-7438.69753278,0.00023,2]
[349403760,1737166252730,-6834.87621132,0.00023,2]
[349403762,1737166252742,-26744.81165381,0.00023,2]
[349403764,1737166252752,-152.047323,0.00023,7]
[349403766,1737166252760,-151.848912,0.00023,7]
[349403768,1737166252769,-151.848912,0.00023,7]
[349403770,1737166252780,-7438.69753278,0.00023,3]
[349403772,1737166252789,-160.0,0.00023012,2]
[349403774,1737166252799,-151.848912,0.00023013,7]
[349403776,1737166252808,-151.848912,0.00023013,7]
[349403778,1737166252818,-548.21694849,0.00023013,3]
[349403780,1737166252829,-500.0,0.00023013,3]
[349403783,1737166252844,-500.0,0.00023013,3]
[349403784,1737166252853,-500.0,0.00023013,3]
[349403786,1737166252862,-500.0,0.00023013,3]
[349403788,1737166252872,-500.0,0.00023013,3]
[349403791,1737166252883,-764.39,0.00023013,3]
[349403804,1737166253000,-767.93,0.00023013,3]
[349403806,1737166253010,-226.36317486,0.00023013,3]
[349403808,1737166253020,-664.42,0.00023013,3]
[349403810,1737166253031,-1390.67,0.00023013,3]
[349403812,1737166253042,-525.98,0.00023013,3]
[349403815,1737166253052,-500.0,0.00023013,2]
[349403817,1737166253062,-934.5,0.00023013,3]
[349403819,1737166253072,-2534.07,0.00023013,3]
[349403821,1737166253081,-2794.44,0.00023013,3]
[349403823,1737166253092,-508.41,0.00023013,3]
[349403825,1737166253101,-554.44,0.00023013,3]
[349403827,1737166253110,-2330.78692855,0.00023013,3]
[349403857,1737166253402,-1567.61732917,0.0002173,2]
[349403859,1737166253412,-151.0,0.00022191,2]
[349403861,1737166253421,-151.0,0.00022191,2]
[349403863,1737166253430,-151.0,0.00022328,2]
[349403865,1737166253440,-218.070831,0.00022465,2]
[349403867,1737166253449,-369.24427214,0.00022876,3]
[349407165,1737166857984,164.926057,0.00013973,2]
[349407172,1737167278045,2801.12387546,0.00016,2]
[349407202,1737167432826,-404.97920198,0.000188,2]
[349407203,1737167432837,-242.82452296,0.000189,2]
[349407204,1737167432847,-979.76083074,0.00021817,2]
[349407205,1737167432857,-405.534,0.0002186,2]
[349407206,1737167432867,-517.7380651,0.00021916,7]
[349407207,1737167432877,-300.0,0.00021916,2]
[349407208,1737167432888,-158.89,0.00021917,2]
[349407209,1737167432898,-181.81100385,0.00021917,3]
[349407210,1737167432907,-229.709,0.00021917,2]
[349407211,1737167432917,-515.14354559,0.00021917,3]
[349407212,1737167432927,-500.0,0.00021917,3]
[349407213,1737167432937,-500.0,0.00021917,3]
[349407214,1737167432947,-500.0,0.00021917,3]
[349407215,1737167432957,-595.97771022,0.00021917,3]
[349407216,1737167432966,-211.59767721,0.00021917,3]
[349407217,1737167432976,-805.46,0.00021917,3]
[349407218,1737167432986,-618.42,0.00021917,3]
[349407220,1737167432996,-500.0,0.00021917,3]
[349407222,1737167433005,-3756.46,0.00021917,3]
[349407224,1737167433016,-500.0,0.00021917,3]
[349407225,1737167433026,-500.0,0.00021917,2]
[349407226,1737167433036,-7488.89448314,0.00021917,3]
[349407227,1737167433057,-525.05090305,0.00021917,3]
[349407228,1737167433069,-618.6632773,0.00021917,3]
[349407229,1737167433081,-1621.12133651,0.00021917,3]
[349407230,1737167433091,-500.0,0.00021917,3]
[349407231,1737167433101,-500.0,0.00021917,3]
[349407232,1737167433110,-500.0,0.00021917,3]
[349407233,1737167433121,-922.98,0.00021917,3]
[349407234,1737167433131,-602.01,0.00021917,3]
[349407235,1737167433141,-1583.8,0.00021917,3]
[349407236,1737167433151,-1998.86,0.00021917,3]
[349407237,1737167433161,-69.83764695,0.00021917,3]
[349407238,1737167433174,-430.16235305,0.00021917,3]
[349407239,1737167433184,-500.0,0.00021917,3]
[349407240,1737167433194,-500.0,0.00021917,3]
[349407241,1737167433204,-500.0,0.00021917,3]
[349407242,1737167433215,-500.0,0.00021917,3]
[349407243,1737167433231,-699.62,0.00021917,3]
[349407244,1737167433242,-584.06,0.00021917,3]
[349407245,1737167433256,-500.0,0.00021917,3]
[349407246,1737167433266,-500.0,0.00021917,3]
[349407247,1737167433276,-1746.53,0.00021917,3]
[349407248,1737167433285,-2576.59,0.00021917,3]
[349407249,1737167433297,-500.0,0.00021917,3]
[349407250,1737167433307,-500.0,0.00021917,3]
[349407251,1737167433317,-500.0,0.00021917,3]
[349407252,1737167433333,-1192.1,0.00021917,3]
[349407253,1737167433356,-502.49410142,0.00021917,3]
[349407254,1737167433366,-869.17,0.00021917,3]
[349407255,1737167433376,-712.93,0.00021917,3]
[349407256,1737167433386,-500.0,0.00021917,3]
[349407257,1737167433396,-640.3,0.00021917,3]
[349407258,1737167433406,-500.0,0.00022054,3]
[349407259,1737167433416,-500.0,0.00022054,3]
[349407260,1737167433427,-500.0,0.00022054,3]
[349407261,1737167433437,-805.46,0.00022054,3]
[349407262,1737167433447,-618.42,0.00022054,3]
[349407263,1737167433458,-500.0,0.00022054,3]
[349407264,1737167433467,-3660.2753142,0.00022054,3]
[349407484,1737167440813,-738.33,0.00021917,3]
[349407486,1737167440824,-96.1846858,0.00022054,3]
[349407488,1737167440834,-500.0,0.00022054,3]
[349407490,1737167440843,-500.0,0.00022054,2]
[349407492,1737167440853,-10253.73,0.00022054,3]
[349407494,1737167440863,-500.0,0.00022054,3]
[349407496,1737167440872,-500.0,0.00022054,3]
[349407498,1737167440882,-500.0,0.00022054,3]
[349407500,1737167440892,-922.98,0.00022054,3]
[349407502,1737167440901,-602.01,0.00022054,3]
[349407504,1737167440910,-1583.8,0.00022054,3]
[349407506,1737167440920,-1998.86,0.00022054,3]
[349407508,1737167440930,-500.0,0.00022054,3]
[349407510,1737167440940,-500.0,0.00022054,3]
[349407513,1737167440950,-500.0,0.00022054,3]
[349407515,1737167440959,-500.0,0.00022054,3]
[349407517,1737167440969,-500.0,0.00022054,3]
[349407519,1737167440979,-699.62,0.00022054,3]
[349407521,1737167440989,-584.06,0.00022054,3]
[349407523,1737167440998,-500.0,0.00022054,3]
[349407525,1737167441008,-500.0,0.00022054,3]
[349407527,1737167441017,-1746.53,0.00022054,3]
[349407529,1737167441027,-2576.59,0.00022054,3]
[349407531,1737167441038,-500.0,0.00022054,3]
[349407533,1737167441047,-500.0,0.00022054,3]
[349407535,1737167441056,-500.0,0.00022054,3]
[349407537,1737167441066,-1192.1,0.00022054,3]
[349407539,1737167441077,-869.17,0.00022054,3]
[349407541,1737167441088,-712.93,0.00022054,3]
[349407543,1737167441097,-500.0,0.00022054,3]
[349407545,1737167441107,-640.3,0.00022054,3]
[349407547,1737167441117,-738.33,0.00022054,3]
[349407549,1737167441127,-979.76083073,0.00022084,2]
[349407551,1737167441136,-156.4757156,0.00022137,2]
[349407554,1737167441146,-2248.86769549,0.00022189,6]
[349407556,1737167441156,-210.2,0.00022191,3]
[349407558,1737167441165,-500.0,0.00022191,3]
[349407560,1737167441176,-500.0,0.00022191,3]
[349407562,1737167441185,-618.42,0.00022191,3]
[349407564,1737167441195,-308.44412277,0.00022191,3]
[349407566,1737167441205,-3756.46,0.00022191,3]
[349407568,1737167441215,-500.0,0.00022191,3]
[349407570,1737167441224,-500.0,0.00022191,2]
[349407572,1737167441233,-10253.73,0.00022191,3]
[349407574,1737167441243,-500.0,0.00022191,3]
[349407576,1737167441253,-500.0,0.00022191,3]
[349407578,1737167441267,-500.0,0.00022191,3]
[349407580,1737167441277,-922.98,0.00022191,3]
[349407582,1737167441286,-602.01,0.00022191,3]
[349407584,1737167441297,-1583.8,0.00022191,3]
[349407586,1737167441308,-1998.86,0.00022191,3]
[349407588,1737167441319,-500.0,0.00022191,3]
[349407590,1737167441329,-500.0,0.00022191,3]
[349407592,1737167441340,-500.0,0.00022191,3]
[349407594,1737167441350,-500.0,0.00022191,3]
[349407596,1737167441359,-500.0,0.00022191,3]
[349407598,1737167441369,-699.62,0.00022191,3]
[349407600,1737167441379,-584.06,0.00022191,3]
[349407602,1737167441388,-500.0,0.00022191,3]
[349407604,1737167441398,-500.0,0.00022191,3]
[349407606,1737167441407,-1746.53,0.00022191,3]
[349407608,1737167441417,-2576.59,0.00022191,3]
[349407610,1737167441427,-500.0,0.00022191,3]
[349407612,1737167441437,-500.0,0.00022191,3]
[349407614,1737167441447,-500.0,0.00022191,3]
[349407616,1737167441457,-1192.1,0.00022191,3]
[349407618,1737167441466,-869.17,0.00022191,3]
[349407621,1737167441477,-712.93,0.00022191,3]
[349407623,1737167441486,-500.0,0.00022191,3]
[349407625,1737167441496,-640.3,0.00022191,3]
[349407627,1737167441506,-738.33,0.00022191,3]
[349407629,1737167441516,-442.92,0.000222,2]
[349407631,1737167441526,-151.0,0.000222,8]
[349407633,1737167441536,-19903.26937087,0.00022218,3]
[349407635,1737167441545,-500.0,0.00022328,3]
[349407637,1737167441554,-500.0,0.00022328,3]
[349407639,1737167441564,-618.42,0.00022328,3]
[349407641,1737167441576,-3756.46,0.00022328,3]
[349407643,1737167441585,-500.0,0.00022328,3]
[349407645,1737167441595,-295.86,0.00022328,2]
[349407647,1737167441604,-10253.73,0.00022328,3]
[349407649,1737167441613,-500.0,0.00022328,3]
[349407651,1737167441623,-500.0,0.00022328,3]
[349407653,1737167441632,-500.0,0.00022328,3]
[349407655,1737167441641,-922.98,0.00022328,3]
[349407657,1737167441651,-602.01,0.00022328,3]
[349407659,1737167441661,-1583.8,0.00022328,3]
[349407661,1737167441671,-1998.86,0.00022328,3]
[349407663,1737167441680,-500.0,0.00022328,3]
[349407665,1737167441690,-500.0,0.00022328,3]
[349407667,1737167441699,-500.0,0.00022328,3]
[349407669,1737167441709,-500.0,0.00022328,3]
[349407671,1737167441718,-500.0,0.00022328,3]
[349407673,1737167441728,-699.62,0.00022328,3]
[349407675,1737167441737,-584.06,0.00022328,3]
[349407677,1737167441747,-500.0,0.00022328,3]
[349407679,1737167441756,-500.0,0.00022328,3]
[349407681,1737167441766,-1746.53,0.00022328,3]
[349407683,1737167441775,-2576.59,0.00022328,3]
[349407685,1737167441784,-500.0,0.00022328,3]
[349407687,1737167441794,-500.0,0.00022328,3]
[349407689,1737167441804,-500.0,0.00022328,3]
[349407691,1737167441814,-1192.1,0.00022328,3]
[349407693,1737167441824,-869.17,0.00022328,3]
[349407695,1737167441834,-712.93,0.00022328,3]
[349407697,1737167441843,-500.0,0.00022328,3]
[349407699,1737167441852,-640.3,0.00022328,3]
[349407701,1737167441862,-738.33,0.00022328,3]
[349407703,1737167441872,-979.76083073,0.0002235,2]
[349407705,1737167441882,-151.0,0.000224,7]
[349407707,1737167441892,-500.0,0.00022464,2]
[349407709,1737167441901,-609.61164769,0.00022464,2]
[349407711,1737167441911,-524.51552942,0.00022464,2]
[349407713,1737167441920,-207.35625289,0.00022464,2]
[349407715,1737167441930,-400.32581525,0.00022464,2]
[349407717,1737167441940,-500.0,0.00022465,3]
[349407719,1737167441950,-500.0,0.00022465,3]
[349407737,1737167441959,-618.42,0.00022465,3]
[349407739,1737167442111,-3756.46,0.00022465,3]
[349407741,1737167442120,-500.0,0.00022465,3]
[349407743,1737167442130,-10253.73,0.00022465,3]
[349407745,1737167442140,-500.0,0.00022465,3]
[349407747,1737167442149,-500.0,0.00022465,3]
[349407749,1737167442158,-500.0,0.00022465,3]
[349407751,1737167442168,-922.98,0.00022465,3]
[349407753,1737167442178,-602.01,0.00022465,3]
[349407755,1737167442187,-1583.8,0.00022465,3]
[349407757,1737167442197,-1998.86,0.00022465,3]
[349407759,1737167442206,-500.0,0.00022465,3]
[349407761,1737167442216,-500.0,0.00022465,3]
[349407763,1737167442225,-500.0,0.00022465,3]
[349407765,1737167442235,-500.0,0.00022465,3]
[349407767,1737167442244,-500.0,0.00022465,3]
[349407769,1737167442254,-699.62,0.00022465,3]
[349407771,1737167442267,-584.06,0.00022465,3]
[349407773,1737167442276,-500.0,0.00022465,3]
[349407775,1737167442286,-500.0,0.00022465,3]
[349407777,1737167442296,-1746.53,0.00022465,3]
[349407779,1737167442305,-2576.59,0.00022465,3]
[349407781,1737167442315,-500.0,0.00022465,3]
[349407784,1737167442327,-500.0,0.00022465,3]
[349407785,1737167442338,-546.5717355,0.00022465,3]
[349407787,1737167442348,-1192.1,0.00022465,3]
[349407790,1737167442357,-869.17,0.00022465,3]
[349407791,1737167442367,-712.93,0.00022465,3]
[349407794,1737167442376,-500.0,0.00022465,3]
[349407795,1737167442385,-640.3,0.00022465,3]
[349407797,1737167442395,-738.33,0.00022465,3]
[349407800,1737167442404,-151.0,0.000225,8]
[349407802,1737167442414,-466.0,0.000225,2]
[349407803,1737167442424,-177.2,0.00022602,3]
[349407806,1737167442434,-500.0,0.00022602,3]
[349407807,1737167442444,-618.42,0.00022602,3]
[349407809,1737167442454,-3756.46,0.00022602,3]
[349407811,1737167442463,-500.0,0.00022602,3]
[349407813,1737167442474,-10253.73,0.00022602,3]
[349407816,1737167442483,-180.08618938,0.00022602,3]
[349407818,1737167442494,-500.0,0.00022602,3]
[349407820,1737167442503,-500.0,0.00022602,3]
[349407822,1737167442513,-922.98,0.00022602,3]
[349407824,1737167442522,-602.01,0.00022602,3]
[349407826,1737167442533,-1583.8,0.00022602,3]
[349407828,1737167442543,-1998.86,0.00022602,3]
[349407830,1737167442553,-500.0,0.00022602,3]
[349407832,1737167442563,-500.0,0.00022602,3]
[349407834,1737167442574,-500.0,0.00022602,3]
[349407836,1737167442583,-500.0,0.00022602,3]
[349407837,1737167442593,-500.0,0.00022602,3]
[349407840,1737167442604,-699.62,0.00022602,3]
[349407841,1737167442614,-584.06,0.00022602,3]
[349407844,1737167442624,-500.0,0.00022602,3]
[349407846,1737167442634,-500.0,0.00022602,3]
[349407848,1737167442644,-1746.53,0.00022602,3]
[349407850,1737167442654,-2576.59,0.00022602,3]
[349407852,1737167442663,-500.0,0.00022602,3]
[349407854,1737167442672,-500.0,0.00022602,3]
[349407856,1737167442682,-1192.1,0.00022602,3]
[349407858,1737167442691,-869.17,0.00022602,3]
[349407860,1737167442700,-712.93,0.00022602,3]
[349407862,1737167442710,-500.0,0.00022602,3]
[349407864,1737167442720,-640.3,0.00022602,3]
[349407866,1737167442729,-738.33,0.00022602,3]
[349407868,1737167442738,-979.76083073,0.00022617,2]
[349407870,1737167442748,-151.0,0.000227,8]
[349407872,1737167442757,-500.0,0.00022709,2]
[349407874,1737167442766,-500.0,0.00022739,3]
[349407876,1737167442775,-618.42,0.00022739,3]
[349407878,1737167442785,-1221.50874645,0.00022739,3]
[349407974,1737167443683,-2534.95125355,0.00022739,3]
[349407976,1737167443693,-500.0,0.00022739,3]
[349407978,1737167443702,-242.30958795,0.00022739,3]
[349414227,1737167731149,164.055129,0.00013973,2]
[349414232,1737168398627,500.0,0.000167,2]
[349414241,1737168572041,163.664455,0.00013973,2]
[349414283,1737168632242,-306.98567153,0.000189,2]
[349414285,1737168632251,-257.99850781,0.00020721,2]
[349414706,1737168638160,-42.00149219,0.00020721,2]
[349414707,1737168638171,-9478.99850781,0.00020722,2]
[349414708,1737168638309,-10147.26431489,0.00020722,2]
[349414709,1737168638321,-1812.33113915,0.00020722,2]
[349414710,1737168638333,-1129.79283425,0.00020722,2]
[349414711,1737168638343,-179.088542,0.00020787,2]
[349414712,1737168638353,-183.767,0.00020925,2]
[349414713,1737168638362,-280.819828,0.000217,2]
[349414714,1737168638372,-184.46050822,0.00021817,2]
[349414716,1737168638382,-489.8804154,0.00021817,2]
[349414718,1737168638393,-416.709,0.0002186,2]
[349414720,1737168638402,-158.95,0.00021917,2]
[349414722,1737168638411,-500.0,0.00021917,3]
[349414724,1737168638420,-500.0,0.00021917,3]
[349414726,1737168638430,-500.0,0.00021917,3]
[349414727,1737168638440,-500.0,0.00021917,3]
[349414728,1737168638450,-543.8,0.00021917,3]
[349414729,1737168638459,-506.74,0.00021917,2]
[349414730,1737168638469,-500.0,0.00021917,3]
[349414731,1737168638479,-215.53290005,0.00021917,3]
[349414732,1737168638488,-500.0,0.00021917,3]
[349414733,1737168638498,-500.0,0.00021917,3]
[349414734,1737168638509,-500.0,0.00021917,3]
[349414735,1737168638519,-500.0,0.00021917,3]
[349414736,1737168638529,-500.0,0.00021917,3]
[349414737,1737168638539,-500.0,0.00021917,3]
[349414738,1737168638548,-500.0,0.00021917,3]
[349414739,1737168638558,-500.0,0.00021917,3]